fUSD/lending_fUSD_20250213
["ID","MTS","AMOUNT","RATE_DAILY","PERIOD"]
[352994684,1739478635440,-649.67,0.00013698,2]
[352994686,1739478635450,-539.17,0.00013698,2]
[352994688,1739478635459,-735.12,0.00013698,2]
[352994690,1739478635468,-884.26,0.00013698,2]
[352994692,1739478635477,-1336.49,0.00013698,2]
[352994694,1739478635486,-551.72,0.00013698,2]
[352994696,1739478635496,-1028.66,0.00013698,2]
[352994698,1739478635505,-500.0,0.00013698,2]
[352994700,1739478635515,-753.18,0.00013698,2]
[352994702,1739478635524,-944.2,0.00013698,2]
[352994704,1739478635533,-781.38,0.00013698,2]
[352994706,1739478635542,-1859.08,0.00013698,2]
[352994708,1739478635552,-1047.3,0.00013698,2]
[352994710,1739478635561,-927.71,0.00013698,2]
[352994712,1739478635571,-1953.74,0.00013698,2]
[352994714,1739478635580,-554.59,0.00013698,2]
[352994716,1739478635590,-1115.18,0.00013698,2]
[352994718,1739478635599,-1446.58,0.00013698,2]
[352994720,1739478635608,-500.0,0.00013698,2]
[352994722,1739478635618,-725.4,0.00013698,2]
[352994724,1739478635627,-500.0,0.00013698,2]
[352994726,1739478635637,-518.07094682,0.00013698,2]
[352994728,1739478635646,-500.0,0.00013698,2]
[352994730,1739478635659,-1374.96,0.00013698,2]
[352994732,1739478635668,-1527.4,0.00013698,2]
[352994734,1739478635678,-500.0,0.00013698,2]
[352994736,1739478635690,-1967.88,0.00013698,2]
[352994738,1739478635700,-1833.79,0.00013698,2]
[352994740,1739478635709,-853.01,0.00013698,2]
[352994742,1739478635718,-567.07016017,0.00013698,2]
[352994744,1739478635728,-689.44,0.00013698,2]
[352994746,1739478635737,-500.0,0.00013698,2]
[352994748,1739478635747,-500.0,0.00013698,2]
[352994750,1739478635756,-1237.95,0.00013698,2]
[352994752,1739478635766,-1175.22,0.00013698,2]
[352994754,1739478635775,-995.5,0.00013698,2]
[352994756,1739478635785,-643.0,0.00013698,2]
[352994758,1739478635795,-1372.76,0.00013698,2]
[352994760,1739478635805,-500.0,0.00013698,2]
[352994762,1739478635814,-500.0,0.00013698,2]
[352994764,1739478635823,-1182.12,0.00013698,2]
[352994766,1739478635833,-500.0,0.00013698,2]
[352994768,1739478635842,-500.0,0.00013698,2]
[352994770,1739478635851,-848.42,0.00013698,2]
[352994772,1739478635860,-750.62,0.00013698,2]
[352994774,1739478635869,-2493.13,0.00013698,2]
[352994776,1739478635879,-500.0,0.00013698,2]
[352994778,1739478635889,-500.0,0.00013698,2]
[352994780,1739478635898,-1377.45,0.00013698,2]
[352994782,1739478635907,-500.0,0.00013698,2]
[352994784,1739478635916,-1240.61,0.00013698,2]
[352994786,1739478635925,-231.41906124,0.00013698,2]
[352994788,1739478635935,-500.0,0.00013698,2]
[352994790,1739478635944,-1050.62,0.00013698,2]
[352994792,1739478635953,-500.0,0.00013698,2]
[352994794,1739478635963,-500.0,0.00013698,2]
[352994796,1739478635972,-500.0,0.00013698,2]
[352994798,1739478635981,-1369.48,0.00013698,2]
[352994800,1739478635991,-1730.29,0.00013698,2]
[352994802,1739478636000,-502.26,0.00013698,2]
[352994804,1739478636009,-500.0,0.00013698,2]
[352994813,1739478636188,-787.9,0.00013698,2]
[352994816,1739478636227,-500.0,0.00013698,2]
[352994818,1739478636236,-869.6,0.00013698,2]
[352994820,1739478636246,-746.38,0.00013698,2]
[352994822,1739478636255,-1113.31,0.00013698,2]
[352994824,1739478636265,-780.26,0.00013698,2]
[352994826,1739478636274,-500.0,0.00013698,2]
[352994828,1739478636283,-608.02,0.00013698,2]
[352994830,1739478636292,-1053.97,0.00013698,2]
[352994832,1739478636301,-768.93,0.00013698,2]
[352994834,1739478636311,-500.0,0.00013698,2]
[352994836,1739478636320,-500.0,0.00013698,2]
[352994838,1739478636329,-2261.91,0.00013698,2]
[352994840,1739478636338,-3013.08,0.00013698,2]
[352994842,1739478636348,-500.0,0.00013698,2]
[352994844,1739478636358,-1371.61,0.00013698,2]
[352994846,1739478636367,-1501.6,0.00013698,2]
[352994848,1739478636376,-1176.54,0.00013698,2]
[352994850,1739478636385,-500.0,0.00013698,2]
[352994852,1739478636395,-635.53,0.00013698,2]
[352994854,1739478636404,-1378.66,0.00013698,2]
[352994856,1739478636413,-500.0,0.00013698,2]
[352994858,1739478636422,-676.33,0.00013698,2]
[352994860,1739478636431,-988.73,0.00013698,2]
[352994862,1739478636441,-3035.92,0.00013698,2]
[352994864,1739478636450,-2394.24,0.00013698,2]
[352994866,1739478636460,-518.24,0.00013698,2]
[352994868,1739478636469,-500.0,0.00013698,2]
[352994870,1739478636478,-1440.22,0.00013698,2]
[352994872,1739478636487,-1718.93,0.00013698,2]
[352994874,1739478636497,-534.18,0.00013698,2]
[352994876,1739478636507,-4050.23,0.00013698,2]
[352994878,1739478636516,-500.0,0.00013698,2]
[352994880,1739478636525,-500.0,0.00013698,2]
[352994882,1739478636534,-500.0,0.00013698,2]
[352994884,1739478636543,-2635.46,0.00013698,2]
[352994886,1739478636553,-500.0,0.00013698,2]
[352994888,1739478636562,-1405.42,0.00013698,2]
[352994890,1739478636572,-500.0,0.00013698,2]
[352994892,1739478636581,-782.39,0.00013698,2]
[352994894,1739478636590,-897.34,0.00013698,2]
[352994895,1739478636599,-1485.38,0.00013698,2]
[352994897,1739478636609,-831.19,0.00013698,2]
[352994900,1739478636620,-500.0,0.00013698,2]
[352994902,1739478636629,-500.0,0.00013698,2]
[352994903,1739478636639,-500.0,0.00013698,2]
[352994905,1739478636651,-1834.06,0.00013698,2]
[352994907,1739478636662,-1356.58,0.00013698,2]
[352994909,1739478636672,-1629.74,0.00013698,2]
[352994911,1739478636682,-796.85,0.00013698,2]
[352994913,1739478636694,-532.52,0.00013698,2]
[352994916,1739478636705,-534.81,0.00013698,2]
[352994917,1739478636715,-500.0,0.00013698,2]
[352994919,1739478636725,-965.19,0.00013698,2]
[352994921,1739478636734,-3640.49,0.00013698,2]
[352994924,1739478636745,-3654.86,0.00013698,2]
[352994925,1739478636754,-500.0,0.00013698,2]
[352994928,1739478636763,-1367.39,0.00013698,2]
[352994929,1739478636773,-616.49,0.00013698,2]
[352994931,1739478636781,-1925.58,0.00013698,2]
[352994934,1739478636791,-1046.66,0.00013698,2]
[352994935,1739478636800,-500.0,0.00013698,2]
[352994937,1739478636810,-512.79,0.00013698,2]
[352994939,1739478636820,-1061.65,0.00013698,2]
[352994941,1739478636829,-4589.74,0.00013698,2]
[352994943,1739478636838,-1545.66,0.00013698,2]
[352994945,1739478636848,-1824.75,0.00013698,2]
[352994947,1739478636857,-500.0,0.00013698,2]
[352994949,1739478636867,-1127.15,0.00013698,2]
[352994951,1739478636876,-500.0,0.00013698,2]
[352994953,1739478636886,-1694.29,0.00013698,2]
[352994955,1739478636896,-1544.21,0.00013698,2]
[352994958,1739478636905,-3601.18,0.00013698,2]
[352994960,1739478636914,-700.13,0.00013698,2]
[352994962,1739478636924,-788.86,0.00013698,2]
[352994964,1739478636933,-935.0,0.00013698,2]
[352994966,1739478636944,-500.0,0.00013698,2]
[352994968,1739478636953,-261.71358711,0.00013698,2]
[352994970,1739478636962,-1091.64,0.00013698,2]
[352994972,1739478636972,-500.0,0.00013698,2]
[352994974,1739478636981,-634.93,0.00013698,2]
[352994976,1739478636991,-4789.73,0.00013698,2]
[352994978,1739478637000,-4593.38,0.00013698,2]
[352994980,1739478637009,-1430.69,0.00013698,2]
[352994982,1739478637019,-3886.62,0.00013698,2]
[352994984,1739478637028,-1999.02,0.00013698,2]
[352994986,1739478637037,-3159.89,0.00013698,2]
[352994988,1739478637046,-1167.87,0.00013698,2]
[352994990,1739478637055,-1190.08,0.00013698,2]
[352994992,1739478637064,-2048.64,0.00013698,2]
[352994994,1739478637074,-500.0,0.00013698,2]
[352994996,1739478637083,-2091.51,0.00013698,2]
[352994998,1739478637093,-2339.47,0.00013698,2]
[352995000,1739478637102,-2897.8,0.00013698,2]
[352995002,1739478637111,-2740.55,0.00013698,2]
[352995004,1739478637121,-1138.74,0.00013698,2]
[352995006,1739478637130,-2212.93,0.00013698,2]
[352995008,1739478637140,-1120.86,0.00013698,2]
[352995010,1739478637149,-2872.59,0.00013698,2]
[352995012,1739478637158,-2096.91,0.00013698,2]
[352995014,1739478637168,-1945.5,0.00013698,2]
[352995016,1739478637177,-500.0,0.00013698,2]
[352995018,1739478637186,-3658.48,0.00013698,2]
[352995020,1739478637196,-769.33,0.00013698,2]
[352995022,1739478637205,-1338.5,0.00013698,2]
[352995024,1739478637215,-991.27,0.00013698,2]
[352995026,1739478637224,-500.0,0.00013698,2]
[352995028,1739478637234,-1197.87,0.00013698,2]
[352995030,1739478637244,-500.0,0.00013698,2]
[352995032,1739478637254,-888.24,0.00013698,2]
[352995034,1739478637263,-3222.8,0.00013698,2]
[352995036,1739478637272,-2025.02,0.00013698,2]
[352995038,1739478637282,-3353.59,0.00013698,2]
[352995040,1739478637291,-697.82160833,0.00013698,2]
[352995047,1739478637344,-1026.21839167,0.00013698,2]
[352995049,1739478637354,-829.09,0.00013698,2]
[352995051,1739478637363,-525.11,0.00013698,2]
[352995053,1739478637373,-346.94360443,0.00013698,2]
[352995056,1739478637386,-1857.57639557,0.00013698,2]
[352995058,1739478637396,-500.0,0.00013698,2]
[352995060,1739478637405,-500.0,0.00013698,2]
[352995062,1739478637415,-819.54,0.00013698,2]
[352995064,1739478637424,-654.71,0.00013698,2]
[352995066,1739478637433,-3122.65,0.00013698,2]
[352995068,1739478637443,-2504.05,0.00013698,2]
[352995070,1739478637452,-3368.47,0.00013698,2]
[352995072,1739478637461,-2251.31,0.00013698,2]
[352995074,1739478637470,-2919.97,0.00013698,2]
[352995076,1739478637480,-3148.45,0.00013698,2]
[352995079,1739478637489,-2864.99,0.00013698,2]
[352995081,1739478637499,-2514.1,0.00013698,2]
[352995083,1739478637508,-601.16,0.00013698,2]
[352995085,1739478637517,-1179.59,0.00013698,2]
[352995087,1739478637527,-500.0,0.00013698,2]
[352995089,1739478637536,-500.0,0.00013698,2]
[352995092,1739478637546,-2661.34,0.00013698,2]
[352995096,1739478637555,-2837.23,0.00013698,2]
[352995100,1739478637565,-3870.44,0.00013698,2]
[352995103,1739478637577,-2147.11,0.00013698,2]
[352995105,1739478637586,-1090.46,0.00013698,2]
[352995108,1739478637596,-3475.32,0.00013698,2]
[352995110,1739478637606,-500.0,0.00013698,2]
[352995112,1739478637615,-500.0,0.00013698,2]
[352995114,1739478637625,-1793.98,0.00013698,2]
[352995116,1739478637634,-500.0,0.00013698,2]
[352995118,1739478637644,-1710.01,0.00013698,2]
[352995120,1739478637657,-6246.63,0.00013698,2]
[352995122,1739478637667,-631.03,0.00013698,2]
[352995124,1739478637676,-4033.15,0.00013698,2]
[352995126,1739478637686,-500.0,0.00013698,2]
[352995128,1739478637698,-4017.66,0.00013698,2]
[352995130,1739478637707,-504.4,0.00013698,2]
[352995132,1739478637717,-2206.36,0.00013698,2]
[352995134,1739478637726,-1675.88,0.00013698,2]
[352995136,1739478637737,-4882.09,0.00013698,2]
[352995138,1739478637747,-5080.55,0.00013698,2]
[352995140,1739478637757,-2645.76,0.00013698,2]
[352995142,1739478637766,-761.55,0.00013698,2]
[352995144,1739478637775,-1352.28,0.00013698,2]
[352995146,1739478637785,-671.35,0.00013698,2]
[352995148,1739478637795,-3304.19,0.00013698,2]
[352995150,1739478637805,-1858.37,0.00013698,2]
[352995152,1739478637815,-500.0,0.00013698,2]
[352995154,1739478637825,-500.0,0.00013698,2]
[352995156,1739478637834,-10213.72,0.00013698,2]
[352995158,1739478637844,-4129.55,0.00013698,2]
[352995160,1739478637853,-500.0,0.00013698,2]
[352995162,1739478637863,-500.0,0.00013698,2]
[352995164,1739478637872,-500.0,0.00013698,2]
[352995166,1739478637881,-3735.54,0.00013698,2]
[352995168,1739478637891,-500.0,0.00013698,2]
[352995170,1739478637901,-2410.54,0.00013698,2]
[352995172,1739478637911,-1282.19,0.00013698,2]
[352995175,1739478637920,-5002.01,0.00013698,2]
[352995176,1739478637929,-500.0,0.00013698,2]
[352995179,1739478637938,-500.0,0.00013698,2]
[352995181,1739478637947,-3393.4,0.00013698,2]
[352995183,1739478637956,-646.47,0.00013698,2]
[352995185,1739478637966,-3412.72,0.00013698,2]
[352995187,1739478637975,-1920.04,0.00013698,2]
[352995189,1739478637984,-4413.06,0.00013698,2]
[352995191,1739478637993,-1738.64,0.00013698,2]
[352995192,1739478638003,-3978.1,0.00013698,2]
[352995194,1739478638012,-500.0,0.00013698,2]
[352995196,1739478638021,-3167.02,0.00013698,2]
[352995199,1739478638031,-621.41,0.00013698,2]
[352995201,1739478638040,-500.0,0.00013698,2]
[352995203,1739478638049,-2243.19,0.00013698,2]
[352995204,1739478638058,-3554.15,0.00013698,2]
[352995207,1739478638068,-3229.96,0.00013698,2]
[352995208,1739478638077,-3448.76,0.00013698,2]
[352995210,1739478638087,-698.1,0.00013698,2]
[352995212,1739478638096,-2048.22,0.00013698,2]
[352995214,1739478638105,-1368.93,0.00013698,2]
[352995216,1739478638114,-6443.92,0.00013698,2]
[352995218,1739478638124,-500.0,0.00013698,2]
[352995221,1739478638133,-1856.72,0.00013698,2]
[352995223,1739478638143,-753.10242346,0.00013698,2]
[352995225,1739478638157,-820.15295765,0.00013698,2]
[352995231,1739478638206,-2574.96461889,0.00013698,2]
[352995233,1739478638216,-1260.71538111,0.00013698,2]
[352995495,1739478640942,-500.79698214,0.00013698,2]
[352995497,1739478640954,-265.56000001,0.00013698,2]
[352995660,1739478642835,-1478.90763674,0.00013698,2]
[352995663,1739478642851,-5021.05,0.00013698,2]
[352995665,1739478642861,-1465.34,0.00013698,2]
[352995667,1739478642870,-500.0,0.00013698,2]
[352995669,1739478642880,-1015.46,0.00013698,2]
[352995671,1739478642890,-1226.99220666,0.00013698,2]
[352995966,1739478645894,-1005.4132011,0.00013698,2]
[352996193,1739479008978,740.58849099,0.0002,120]
[352996199,1739479688917,1230.62,0.00010118,2]
[352996200,1739479744916,202.51,0.00010137,2]
[352996210,1739479831961,-500.0,0.00011364,2]
[352996211,1739479831971,-500.0,0.00011364,2]
[352996212,1739479831980,-500.0,0.00011364,2]
[352996213,1739479831989,-150.0,0.0001145,2]
[352996214,1739479831998,-200.0,0.0001145,2]
[352996215,1739479832008,-150.0,0.00011838,2]
[352996216,1739479832017,-200.0,0.00011838,2]
[352996217,1739479832026,-563.25,0.00012022,2]
[352996218,1739479832037,-2133.96772352,0.00012022,2]
[352996219,1739479832047,-300.0,0.00012226,2]
[352996220,1739479832058,-903.02229368,0.00012227,2]
[352996221,1739479832084,-522.3652808,0.00012227,2]
[352996222,1739479832095,-1244.15535,0.00012227,2]
[352996223,1739479832178,-1301.94,0.00012227,2]
[352996336,1739479837938,-318.20514,0.00012227,2]
[352996337,1739479837950,-5852.47830461,0.00012227,2]
[352996338,1739479837969,-13757.83363091,0.00012227,2]
[352996339,1739479837979,-1230.62,0.00012382,2]
[352996340,1739479837988,-150.0,0.00012411,2]
[352996341,1739479837998,-1000.0,0.00012434,2]
[352996342,1739479838007,-2000.0,0.00012452,2]
[352996343,1739479838017,-150.0,0.00012452,2]
[352996344,1739479838026,-150.0,0.00012452,2]
[352996345,1739479838036,-150.0,0.00012452,2]
[352996346,1739479838046,-150.0,0.00012452,2]
[352996347,1739479838056,-166.75,0.00012463,2]
[352996348,1739479838069,-1500.0,0.00012499,2]
[352996349,1739479838079,-150.0,0.000125,2]
[352996350,1739479838088,-200.0,0.000125,2]
[352996351,1739479838098,-150.0,0.0001251,2]
[352996352,1739479838107,-94.79636909,0.00012567,2]
[352996353,1739479838121,-55.20363091,0.00012567,2]
[352996354,1739479838130,-428.99,0.00012584,2]
[352996355,1739479838140,-150.0,0.00012613,2]
[352996356,1739479838151,-150.0,0.00012625,2]
[352996357,1739479838160,-155.54,0.00012662,2]
[352996359,1739479838169,-150.0,0.00012683,2]
[352996361,1739479838179,-150.0,0.00012683,2]
[352996363,1739479838189,-27.70549684,0.00012734,2]
[352996365,1739479838201,-472.29450316,0.00012734,2]
[352996367,1739479838210,-500.0,0.00012734,2]
[352996369,1739479838220,-150.0,0.0001274,2]
[352996371,1739479838229,-827.20549684,0.00012742,2]
[352996373,1739479838242,-553.59450316,0.00012742,2]
[352996375,1739479838251,-200.0,0.00012752,2]
[352996377,1739479838261,-1036.75,0.00012792,2]
[352996379,1739479838270,-150.0,0.00012798,2]
[352996381,1739479838280,-150.0,0.00012856,2]
[352996383,1739479838289,-150.0,0.00012856,2]
[352996385,1739479838298,-150.0,0.00012913,2]
[352996387,1739479838307,-150.0,0.00012913,2]
[352996389,1739479838317,-196.76996645,0.00012959,2]
[352996395,1739479838363,-154.23003355,0.00012959,2]
[352996397,1739479838373,-150.0,0.00012971,2]
[352996399,1739479838382,-150.0,0.00013029,2]
[352996401,1739479838393,-150.0,0.00013086,2]
[352996403,1739479838403,-150.0,0.00013144,2]
[352996405,1739479838412,-150.0,0.00013144,2]
[352996407,1739479838422,-1195.83,0.00013178,2]
[352996409,1739479838431,-439.73,0.00013178,2]
[352996411,1739479838441,-166.49,0.000132,2]
[352996413,1739479838450,-150.0,0.00013201,2]
[352996415,1739479838460,-178.26,0.00013236,2]
[352996417,1739479838469,-150.0,0.00013259,2]
[352996419,1739479838479,-150.0,0.00013317,2]
[352996421,1739479838488,-150.0,0.0001337,2]
[352996423,1739479838498,-150.0,0.00013374,2]
[352996425,1739479838507,-150.0,0.00013374,2]
[352996427,1739479838516,-1084.56735558,0.00013424,2]
[352996429,1739479838527,-1072.65762263,0.00013424,2]
[352996431,1739479838536,-150.0,0.00013432,2]
[352996433,1739479838545,-150.0,0.0001349,2]
[352996435,1739479838555,-166.75,0.00013492,2]
[352996437,1739479838564,-3507.96859986,0.000135,2]
[352996439,1739479838576,-159.79140463,0.00013505,2]
[352996441,1739479838585,-159.79140454,0.00013518,2]
[352996443,1739479838595,-563.25,0.00013524,2]
[352996445,1739479838604,-159.79140454,0.00013532,2]
[352996447,1739479838613,-159.79140454,0.00013545,2]
[352996476,1739479838875,-150.0,0.00013547,2]
[352996478,1739479838886,-3507.9685998,0.00013547,2]
[352996480,1739479838897,-159.79140454,0.00013559,2]
[352996482,1739479838907,-159.79140454,0.00013572,2]
[352996484,1739479838917,-424.8760852,0.00013585,2]
[352996486,1739479838926,-159.79140454,0.00013586,2]
[352996488,1739479838936,-3683.528282,0.00013598,2]
[352996490,1739479838945,-159.79140454,0.00013599,2]
[352996492,1739479838954,-20336.98845083,0.000136,2]
[352996495,1739479838969,-8355.461751,0.000136,2]
[352996497,1739479838983,-36008.590824,0.000136,2]
[352996500,1739479838995,-5559.0,0.000136,2]
[352996582,1739479839896,-2213.81361521,0.000136,2]
[352996584,1739479839908,-1926.7625926,0.000136,2]
[352996586,1739479839921,-96479.18338582,0.000136,2]
[352996601,1739479840055,-1034.6788,0.000136,2]
[352996607,1739479840109,-858.9996378,0.000136,2]
[352996609,1739479840121,-851.35074299,0.000136,2]
[352996611,1739479840133,-284.08454038,0.000136,2]
[352996614,1739479840148,-1328.48667862,0.000136,2]
[352996616,1739479840160,-432.94271723,0.000136,2]
[352996618,1739479840171,-1347.0,0.000136,2]
[352996636,1739479840331,-1022.5951031,0.00013328,2]
[352996638,1739479840341,-512.78791609,0.000136,2]
[352996639,1739479840350,-1254.0,0.000136,2]
[352996642,1739479840360,-150.0,0.00013605,2]
[352996643,1739479840370,-150.0,0.00013605,2]
[352996645,1739479840379,-159.79140454,0.00013613,2]
[352996647,1739479840391,-159.79140454,0.00013626,2]
[352996649,1739479840400,-3683.52828192,0.00013635,2]
[352996651,1739479840409,-159.79140454,0.0001364,2]
[352996653,1739479840419,-159.79140454,0.00013653,2]
[352996655,1739479840429,-150.0,0.00013663,2]
[352996657,1739479840438,-159.79140454,0.00013667,2]
[352996659,1739479840448,-3683.52828192,0.00013671,2]
[352996661,1739479840457,-158.9233467,0.0001368,2]
[352996663,1739479840466,-159.79140454,0.0001368,2]
[352996665,1739479840476,-1000.0,0.00013684,3]
[352996667,1739479840485,-2244.12,0.00013696,2]
[352996669,1739479840494,-174.58,0.00013696,2]
[352996670,1739479840503,-431.95362761,0.00013696,2]
[352996671,1739479840513,-500.0,0.00013697,2]
[352996672,1739479840522,-190.38292148,0.00013697,2]
[352996674,1739479840532,-258.46856333,0.00013697,2]
[352996676,1739479840542,-500.0,0.00013697,2]
[352996678,1739479840552,-595.591737,0.00013697,2]
[352996680,1739479840562,-365.98592846,0.00013697,2]
[352996682,1739479840571,-500.0,0.00013697,2]
[352996683,1739479840581,-500.0,0.00013697,2]
[352996685,1739479840590,-500.0,0.00013697,2]
[352996687,1739479840599,-500.0,0.00013697,2]
[352996689,1739479840609,-500.0,0.00013697,2]
[352996691,1739479840618,-484061.39168304,0.00013698,3]
[352996931,1739479842916,-490.29446273,0.00013595,2]
[352997175,1739479845903,-3017.67413707,0.00013595,2]
[352997177,1739479845913,-1980.32586293,0.00013698,3]
[352997180,1739479845931,-337.80927,0.00013698,3]
[352997185,1739479845969,-384.50318454,0.00013698,3]
[352997187,1739479845980,-9495.35390809,0.00013698,3]
[352997189,1739479845991,-20091.63381721,0.00013698,3]
[352997191,1739479846004,-13886.59135991,0.00013698,3]
[352997193,1739479846015,-3029.10425445,0.00013698,3]
[352997196,1739479846026,-497.57463508,0.00013698,3]
[352997226,1739479846307,-3242.04,0.00013698,3]
[352997228,1739479846319,-6062.64759531,0.00013698,3]
[352997232,1739479846347,-18838.18017648,0.00013698,3]
[352997235,1739479846358,-517.7179174,0.00013698,3]
[352997237,1739479846369,-5313.61,0.00013698,3]
[352997239,1739479846380,-533.59496,0.00013698,3]
[352997242,1739479846393,-179350.45098451,0.00013698,3]
[352997245,1739479846404,-459.58986104,0.00013698,3]
[352997249,1739479846435,-270.71766461,0.00013698,3]
[352997251,1739479846446,-300078.53886472,0.00013698,3]
[352997256,1739479933115,16203.177,8.836e-05,2]
[352997257,1739479969975,2911.7662,8.836e-05,2]
[352997258,1739479970010,984.236,8.699e-05,2]
[352997259,1739479972851,1698.1318,8.699e-05,2]
[352997260,1739480042280,301.0,0.000136,30]
[352997261,1739480113077,22267.6763,8.836e-05,2]
[352997262,1739480326702,4653.6978,8.699e-05,2]
[352997263,1739480332748,239.9145,8.699e-05,2]
[352997264,1739480357664,266.6488,8.699e-05,2]
[352997265,1739480363403,921.0917,8.699e-05,2]
[352997266,1739480375939,4943.2274,8.836e-05,2]
[352997267,1739480427626,17532.1285,8.836e-05,2]
[352997268,1739480736985,669.5971,8.836e-05,2]
[352997269,1739480756571,1146.4,0.00010408,2]
[352997270,1739480860295,177.06,0.00010137,2]
[352997285,1739481032078,-500.0,0.00011364,2]
[352997286,1739481032087,-500.0,0.00011364,2]
[352997287,1739481032096,-500.0,0.00011364,2]
[352997288,1739481032106,-150.0,0.0001145,2]
[352997289,1739481032115,-500.0,0.00011973,2]
[352997290,1739481032124,-300.0,0.00012228,2]
[352997291,1739481032133,-23900.0,0.00012229,2]
[352997292,1739481032143,-169.98,0.00012235,2]
[352997293,1739481032152,-1262.05,0.00012253,2]
[352997294,1739481032162,-2098.16,0.00012296,2]
[352997295,1739481032171,-1244.77,0.00012325,2]
[352997296,1739481032180,-1000.0,0.00012354,2]
[352997297,1739481032190,-150.0,0.00012378,2]
[352997298,1739481032199,-150.0,0.00012378,2]
[352997299,1739481032209,-150.0,0.00012378,2]
[352997300,1739481032219,-1500.0,0.00012419,2]
[352997301,1739481032228,-2000.0,0.0001244,2]
[352997302,1739481032237,-883.84,0.00012477,2]
[352997303,1739481032248,-150.0,0.000125,2]
[352997304,1739481032258,-150.0,0.000125,2]
[352997305,1739481032267,-250.0,0.00012514,2]
[352997306,1739481032277,-150.0,0.00012546,2]
[352997307,1739481032286,-2000.0,0.00012568,2]
[352997308,1739481032297,-1146.4,0.00012671,2]
[352997309,1739481032306,-500.0,0.00012734,2]
[352997310,1739481032315,-500.0,0.00012734,2]
[352997311,1739481032325,-439.73,0.00012841,2]
[352997312,1739481032335,-251.94,0.00012877,2]
[352997313,1739481032345,-550.0,0.00013,2]
[352997314,1739481032354,-150.0,0.00013066,2]
[352997315,1739481032363,-1600.0,0.000131,4]
[352997316,1739481032373,-150.0,0.00013163,2]
[352997317,1739481032383,-3200.0,0.000132,4]
[352997318,1739481032392,-431.95362761,0.00013225,2]
[352997319,1739481032401,-638.0,0.00013244,2]
[352997320,1739481032411,-569.0,0.00013244,2]
[352997321,1739481032421,-1786.0,0.00013244,2]
[352997322,1739481032433,-908.0,0.00013244,2]
[352997323,1739481032443,-1210.33,0.00013244,2]
[352997324,1739481032453,-539.0,0.00013244,2]
[352997325,1739481032463,-4800.0,0.000133,4]
[352997326,1739481032474,-1113.75916486,0.00013328,2]
[352997327,1739481032484,-6400.0,0.000134,4]
[352997328,1739481032493,-1008.0,0.00013402,2]
[352997329,1739481032504,-3915.0,0.00013402,2]
[352997330,1739481032514,-150.0,0.00013402,2]
[352997331,1739481032523,-420.0,0.0001342,2]
[352997332,1739481032532,-1045.4600594,0.00013424,2]
[352997333,1739481032542,-5880.6072801,0.00013431,2]
[352997334,1739481032553,-5880.6072801,0.00013441,2]
[352997335,1739481032562,-300.22,0.00013452,2]
[352997336,1739481032572,-5880.6072801,0.00013488,2]
[352997337,1739481032581,-5880.6072801,0.00013492,2]
[352997338,1739481032591,-8000.0,0.000135,4]
[352997339,1739481032600,-150.0,0.00013555,2]
[352997340,1739481032610,-300.41,0.00013555,2]
[352997341,1739481032620,-1972.18,0.00013555,2]
[352997342,1739481032630,-150.0,0.00013555,2]
[352997343,1739481032640,-150.0,0.00013555,2]